fUST/lending_fUST_20240810
["ID","MTS","AMOUNT","RATE_DAILY","PERIOD"]
[334575614,1723257041649,-500.0,0.00020821,3]
[334575615,1723257041658,-506.2506564,0.00020821,3]
[334575616,1723257041667,-500.0,0.00020821,3]
[334575617,1723257041677,-885.48,0.00020821,3]
[334575618,1723257041686,-500.0,0.00020821,3]
[334575619,1723257041696,-500.0,0.00020821,3]
[334575620,1723257041705,-500.0,0.00020821,3]
[334575621,1723257041713,-151.0,0.00020821,2]
[334575622,1723257041723,-205.58067072,0.00020821,3]
[334575623,1723257041733,-151.0,0.00020821,2]
[334575624,1723257041742,-151.0,0.00020821,2]
[334575625,1723257041752,-151.0,0.00020821,2]
[334575626,1723257041761,-151.0,0.00020821,2]
[334575627,1723257041770,-500.0,0.00020821,3]
[334575628,1723257041779,-151.0,0.00020821,2]
[334575629,1723257041788,-151.0,0.00020821,2]
[334575630,1723257041798,-243.141117,0.00020821,2]
[334575631,1723257041807,-526.68,0.00020821,3]
[334575632,1723257041817,-500.0,0.00020821,3]
[334575633,1723257041827,-500.0,0.00020821,3]
[334575634,1723257041837,-500.0,0.00020821,3]
[334575635,1723257041848,-529.76730031,0.00020821,3]
[334575636,1723257041859,-500.0,0.00020821,3]
[334575637,1723257041868,-500.0,0.00020821,3]
[334575638,1723257041878,-500.0,0.00020821,3]
[334575639,1723257041887,-500.0,0.00020821,3]
[334575640,1723257041898,-500.0,0.00020821,3]
[334575641,1723257041907,-774.88,0.00020821,3]
[334575642,1723257041916,-500.0,0.00020821,3]
[334575643,1723257041925,-500.0,0.00020821,3]
[334575644,1723257041935,-500.0,0.00020821,3]
[334575645,1723257041944,-500.0,0.00020821,3]
[334575646,1723257041954,-500.0,0.00020821,3]
[334575647,1723257041963,-500.0,0.00020821,3]
[334575648,1723257041974,-500.0,0.00020821,3]
[334575649,1723257041984,-500.0,0.00020821,3]
[334575650,1723257041993,-500.0,0.00020821,3]
[334575651,1723257042003,-500.0,0.00020821,3]
[334575652,1723257042011,-262.6169332,0.00020821,3]
[334575653,1723257042021,-500.0,0.00020821,3]
[334575654,1723257042029,-500.0,0.00020821,3]
[334575655,1723257042038,-500.0,0.00020821,3]
[334575656,1723257042049,-500.0,0.00020821,3]
[334575657,1723257042059,-500.0,0.00020821,3]
[334575658,1723257042069,-151.0,0.00020821,2]
[334575659,1723257042078,-500.0,0.00020821,3]
[334575660,1723257042087,-151.0,0.00020821,2]
[334575661,1723257042097,-151.0,0.00020821,2]
[334575662,1723257042106,-151.0,0.00020821,2]
[334575663,1723257042115,-151.0,0.00020821,2]
[334575664,1723257042127,-500.0,0.00020821,3]
[334575665,1723257042136,-151.0,0.00020821,2]
[334575666,1723257042145,-505.34406932,0.00020821,3]
[334575667,1723257042154,-504.0548066,0.00020821,3]
[334575668,1723257042163,-151.0,0.00020821,2]
[334575669,1723257042172,-500.0,0.00020821,3]
[334575670,1723257042181,-151.0,0.00020821,2]
[334575671,1723257042190,-500.0,0.00020821,3]
[334575672,1723257042199,-151.0,0.00020821,2]
[334575673,1723257042208,-151.0,0.00020821,2]
[334575674,1723257042219,-151.0,0.00020821,2]
[334575675,1723257042229,-151.0,0.00020821,2]
[334575676,1723257042238,-151.0,0.00020821,2]
[334575677,1723257042247,-151.0,0.00020821,2]
[334575678,1723257042256,-151.0,0.00020821,2]
[334575679,1723257042265,-151.0,0.00020821,2]
[334575680,1723257042275,-500.0,0.00020821,3]
[334575681,1723257042285,-200.369242,0.00020821,2]
[334575682,1723257042294,-500.0,0.00020821,3]
[334575683,1723257042303,-500.0,0.00020821,3]
[334575684,1723257042312,-500.0,0.00020821,3]
[334575685,1723257042321,-500.0,0.00020821,3]
[334575686,1723257042331,-500.0,0.00020821,3]
[334575687,1723257042340,-151.0,0.00020821,2]
[334575688,1723257042350,-151.0,0.00020821,2]
[334575689,1723257042360,-151.0,0.00020821,2]
[334575690,1723257042370,-151.0,0.00020821,2]
[334575691,1723257042379,-151.0,0.00020821,2]
[334575692,1723257042388,-151.0,0.00020821,2]
[334575693,1723257042397,-500.0,0.00020821,3]
[334575694,1723257042406,-151.0,0.00020821,2]
[334575695,1723257042415,-155.701473,0.00020821,2]
[334575696,1723257042424,-115.69414903,0.00020821,3]
[334575697,1723257042851,-384.30585097,0.00020821,3]
[334575698,1723257042862,-500.0,0.00020821,3]
[334575699,1723257042872,-882.9,0.00020821,3]
[334575700,1723257042881,-500.0,0.00020821,3]
[334575701,1723257042891,-693.42,0.00020821,3]
[334575702,1723257042900,-500.0,0.00020821,3]
[334575703,1723257042910,-500.0,0.00020821,3]
[334575704,1723257042919,-501.28754201,0.00020821,3]
[334575705,1723257042929,-500.0,0.00020821,3]
[334575706,1723257042939,-500.0,0.00020821,3]
[334575707,1723257042948,-500.0,0.00020821,2]
[334575708,1723257042957,-684.99,0.00020821,3]
[334575709,1723257042967,-402.51032163,0.00020821,3]
[334575710,1723257042977,-500.0,0.00020821,3]
[334575711,1723257042987,-504.36745766,0.00020821,3]
[334575712,1723257042996,-500.0,0.00020821,3]
[334575713,1723257043005,-500.0,0.00020821,3]
[334575714,1723257043015,-500.0,0.00020821,3]
[334575715,1723257043025,-1293.74,0.00020821,3]
[334575716,1723257043035,-513.8653189,0.00020821,3]
[334575717,1723257043047,-500.0,0.00020821,3]
[334575718,1723257043057,-500.0,0.00020821,3]
[334575719,1723257043067,-500.0,0.00020821,3]
[334575720,1723257043076,-500.0,0.00020821,3]
[334575721,1723257043087,-500.0,0.00020821,3]
[334575722,1723257043096,-1207.52,0.00020821,3]
[334575723,1723257043107,-1070.79,0.00020821,3]
[334575724,1723257043117,-500.0,0.00020821,3]
[334575725,1723257043128,-500.0,0.00020821,3]
[334575726,1723257043140,-500.0,0.00020821,3]
[334575727,1723257043149,-502.39300284,0.00020821,3]
[334575728,1723257043159,-500.0,0.00020821,3]
[334575729,1723257043168,-500.0,0.00020821,3]
[334575730,1723257043178,-507.78993842,0.00020821,3]
[334575731,1723257043187,-500.0,0.00020821,3]
[334575732,1723257043197,-500.0,0.00020821,3]
[334575733,1723257043206,-500.0,0.00020821,3]
[334575734,1723257043215,-500.0,0.00020821,3]
[334575735,1723257043226,-500.0,0.00020821,3]
[334575736,1723257043236,-500.0,0.00020821,3]
[334575739,1723257043245,-500.0,0.00020821,3]
[334575742,1723257043255,-500.0,0.00020821,3]
[334575745,1723257043264,-634.20756766,0.00020821,3]
[334575747,1723257043274,-500.0,0.00020821,2]
[334575749,1723257043284,-609.85,0.00020821,3]
[334575751,1723257043294,-526.59515084,0.00020821,3]
[334575753,1723257043304,-501.48791358,0.00020821,3]
[334575754,1723257043313,-500.0,0.00020821,3]
[334575756,1723257043323,-500.0,0.00020821,3]
[334575757,1723257043332,-45.70779464,0.00020821,3]
[334575766,1723257046926,-526.08072875,0.00020721,2]
[334575767,1723257046938,-943.2101311,0.00020721,2]
[334575768,1723257046950,-722.98055713,0.00020721,2]
[334575776,1723257532317,273.37336231,9.9e-05,2]
[334575778,1723257548489,273.37336231,9.9e-05,2]
[334575779,1723257564138,273.37336231,9.9e-05,2]
[334575780,1723257581577,273.37336231,9.9e-05,2]
[334575782,1723257597465,273.37336231,9.9e-05,2]
[334575783,1723257613373,273.37336231,9.9e-05,2]
[334575784,1723257628772,273.37336231,9.9e-05,2]
[334575785,1723257644107,273.37336231,9.9e-05,2]
[334575787,1723257653308,161.26850269,9.9e-05,2]
[334575788,1723257660935,273.37336231,9.9e-05,2]
[334575789,1723257665905,3609.28567796,9.9e-05,2]
[334575790,1723257676433,273.37336231,9.9e-05,2]
[334575791,1723257691865,273.37336231,9.9e-05,2]
[334575792,1723257707497,273.37336231,9.9e-05,2]
[334575793,1723257724052,273.37336231,9.9e-05,2]
[334575794,1723257739336,273.37336231,9.9e-05,2]
[334575796,1723257754967,273.37336231,9.9e-05,2]
[334575797,1723257769959,273.37336231,9.9e-05,2]
[334575798,1723257786691,273.37336231,9.9e-05,2]
[334575803,1723257803387,273.37336231,9.9e-05,2]
[334575805,1723257818837,273.37336231,9.9e-05,2]
[334575806,1723257823498,2002.49553145,0.00012,2]
[334575807,1723257835875,273.37336231,9.9e-05,2]
[334575808,1723257851277,273.37336231,9.9e-05,2]
[334575809,1723257867181,273.37336231,9.9e-05,2]
[334575810,1723257882515,273.37336231,9.9e-05,2]
[334575811,1723257898001,273.37336231,9.9e-05,2]
[334575812,1723257913847,273.37336231,9.9e-05,2]
[334575813,1723257929754,273.37336231,9.9e-05,2]
[334575814,1723257946068,273.37336231,9.9e-05,2]
[334575815,1723257961727,273.37336231,9.9e-05,2]
[334575816,1723257977789,273.37336231,9.9e-05,2]
[334575818,1723257992925,166.521204,0.00014247,2]
[334575819,1723257993297,273.37336231,9.9e-05,2]
[334575820,1723258009188,273.37336231,9.9e-05,2]
[334575821,1723258025022,273.37336231,9.9e-05,2]
[334575822,1723258038697,155.07938873,0.00012,2]
[334575823,1723258041945,273.37336231,9.9e-05,2]
[334575824,1723258058824,266.95033446,9.9e-05,2]
[334575825,1723258058849,6.42302785,9.9e-05,2]
[334575826,1723258075044,273.37336231,9.9e-05,2]
[334575827,1723258090348,273.37336231,9.9e-05,2]
[334575828,1723258105723,273.37336231,9.9e-05,2]
[334575829,1723258122141,273.37336231,9.9e-05,2]
[334575830,1723258138382,273.37336231,9.9e-05,2]
[334575838,1723258150109,-300.0,0.00018698,2]
[334575839,1723258150136,-280.97471081,0.00018699,2]
[334575840,1723258154218,273.37336231,9.9e-05,2]
[334575841,1723258170218,273.37336231,9.9e-05,2]
[334575842,1723258186701,273.37336231,9.9e-05,2]
[334575843,1723258202499,273.37336231,9.9e-05,2]
[334575844,1723258218554,273.37336231,9.9e-05,2]
[334575885,1723258232964,-300.0,0.00018698,2]
[334575887,1723258232975,-2639.16426112,0.00018699,2]
[334575915,1723258233876,273.37336231,9.9e-05,2]
[334575926,1723258239480,-21969.86102807,0.00018699,2]
[334575927,1723258239491,-200.0,0.00018904,2]
[334575928,1723258239500,-2863.9954315,0.0001903,2]
[334575929,1723258239510,-812.17553996,0.00019046,2]
[334575930,1723258239520,-154.79103211,0.00019147,2]
[334575931,1723258239530,-157.944765,0.00019273,2]
[334575932,1723258239539,-157.944765,0.0001944,2]
[334575933,1723258239548,-2277.87309117,0.00019451,3]
[334575934,1723258239557,-501.98208771,0.00019477,2]
[334575935,1723258239566,-157.944765,0.00019608,2]
[334575936,1723258239575,-157.944765,0.00019775,2]
[334575937,1723258239585,-1606.76419652,0.00019899,2]
[334575938,1723258239594,-157.944765,0.00019942,2]
[334575939,1723258239604,-156.9511904,0.0002,2]
[334575940,1723258239613,-154.96722016,0.0002,2]
[334575941,1723258239622,-157.944765,0.0002011,2]
[334575942,1723258239632,-157.944765,0.00020277,2]
[334575943,1723258239641,-428.55173796,0.0002028,2]
[334575944,1723258239651,-2140.20887195,0.00020396,2]
[334575945,1723258239663,-2780.65503101,0.00020396,2]
[334575946,1723258239672,-1258.89870515,0.00020403,2]
[334575947,1723258239682,-653.67974,0.00020407,2]
[334575948,1723258239691,-747.680623,0.00020407,2]
[334575949,1723258239701,-167.048977,0.00020407,2]
[334575950,1723258239710,-307.5532993,0.00020411,2]
[334575951,1723258239719,-1258.89870514,0.00020455,2]
[334575952,1723258239729,-32115.10197486,0.000205,2]
[334575953,1723258239741,-19626.17489315,0.000205,2]
[334575954,1723258239751,-151.0,0.00020503,2]
[334575955,1723258239762,-151.0,0.00020503,2]
[334575956,1723258239771,-1258.89870514,0.00020507,2]
[334575957,1723258239781,-381.6638404,0.00020548,2]
[334575958,1723258239792,-278.6967377,0.00020548,2]
[334575959,1723258239802,-1258.89870514,0.00020558,2]
[334575960,1723258239811,-420.0,0.00020568,2]
[334575961,1723258239821,-316.1,0.00020581,3]
[334575962,1723258239831,-158.05,0.00020581,3]
[334575963,1723258239841,-474.2,0.00020581,3]
[334575964,1723258239851,-39677.3841451,0.00020591,2]
[334575965,1723258239860,-151.0,0.00020597,2]
[334575966,1723258239870,-151.0,0.00020597,2]
[334575967,1723258239881,-2000.0,0.00020601,2]
[334575968,1723258239891,-1258.89870514,0.0002061,2]
[334575969,1723258239901,-278.44727781,0.0002061,3]
[334575970,1723258239912,-3031.09842956,0.00020621,2]
[334575971,1723258239921,-39677.3841451,0.00020647,2]
[334575972,1723258239931,-42452.48842163,0.00020657,2]
[334575973,1723258239940,-653.67974,0.00020662,2]
[334575974,1723258239950,-747.680623,0.00020662,2]
[334575975,1723258239959,-39677.3841451,0.00020691,2]
[334575976,1723258239969,-151.0,0.00020692,2]
[334575977,1723258239979,-151.0,0.00020692,2]
[334575978,1723258239988,-150.112233,0.000207,2]
[334575979,1723258239999,-150.112233,0.000207,3]
[334575980,1723258240009,-77839.00350721,0.000207,11]
[334575981,1723258240018,-234.732712,0.000207,2]
[334575982,1723258240028,-39677.3841451,0.000207,2]
[334575983,1723258240038,-461.281833,0.00020701,2]
[334575984,1723258240047,-461.281833,0.00020701,2]
[334575985,1723258240057,-151.0,0.00020701,2]
[334575986,1723258240068,-880.79709,0.0002071,2]
[334575987,1723258240077,-880.79709,0.0002071,2]
[334575988,1723258240087,-153.818964,0.0002071,2]
[334575989,1723258240096,-171.52843,0.0002071,2]
[334575990,1723258240106,-171.52843,0.0002071,2]
[334575991,1723258240116,-388.754769,0.0002071,2]
[334575992,1723258240126,-288.88924,0.0002071,2]
[334575993,1723258240136,-388.754769,0.0002071,2]
[334575994,1723258240147,-288.88924,0.0002071,2]
[334575995,1723258240157,-161.655673,0.0002071,2]
[334575996,1723258240167,-151.0,0.0002071,2]
[334575997,1723258240176,-151.0,0.0002071,2]
[334575998,1723258240186,-378.223447,0.0002071,2]
[334575999,1723258240195,-378.223447,0.0002071,2]
[334576000,1723258240206,-199.062097,0.0002071,2]
[334576001,1723258240215,-199.062097,0.0002071,2]
[334576002,1723258240225,-378.223447,0.0002071,2]
[334576003,1723258240235,-378.223447,0.0002071,2]
[334576004,1723258240245,-199.062097,0.0002071,2]
[334576005,1723258240257,-199.062097,0.0002071,2]
[334576006,1723258240268,-461.281833,0.0002071,2]
[334576007,1723258240277,-461.281833,0.0002071,2]
[334576008,1723258240286,-151.0,0.0002071,2]
[334576009,1723258240295,-151.0,0.0002071,2]
[334576010,1723258240305,-151.0,0.0002071,2]
[334576011,1723258240315,-151.0,0.0002071,2]
[334576012,1723258240325,-151.0,0.0002071,2]
[334576013,1723258240334,-151.0,0.0002071,2]
[334576014,1723258240344,-234.732712,0.0002071,2]
[334576015,1723258240353,-500.0,0.0002071,2]
[334576016,1723258240362,-290.18469059,0.0002071,2]
[334576017,1723258240372,-501.40862271,0.0002071,2]
[334576018,1723258240381,-169.06065909,0.0002071,2]
[334576019,1723258240391,-501.40862271,0.0002071,2]
[334576020,1723258240404,-501.40862271,0.0002071,2]
[334576021,1723258240413,-501.40862271,0.0002071,2]
[334576022,1723258240423,-501.40862271,0.0002071,2]
[334576023,1723258240435,-501.40862271,0.0002071,2]
[334576024,1723258240445,-501.40862271,0.0002071,2]
[334576025,1723258240454,-501.40862271,0.0002071,2]
[334576026,1723258240463,-501.40862271,0.0002071,2]
[334576027,1723258240474,-501.40862271,0.0002071,2]
[334576028,1723258240483,-501.40862271,0.0002071,2]
[334576029,1723258240492,-501.40862271,0.0002071,2]
[334576030,1723258240501,-501.40862271,0.0002071,2]
[334576031,1723258240512,-501.40862271,0.0002071,2]
[334576032,1723258240521,-501.40862271,0.0002071,2]
[334576033,1723258240531,-501.40862271,0.0002071,2]
[334576034,1723258240540,-501.40862271,0.0002071,2]
[334576035,1723258240549,-1172.35053061,0.0002071,2]
[334576036,1723258240559,-1172.35053061,0.0002071,2]
[334576037,1723258240569,-1172.35053061,0.0002071,2]
[334576038,1723258240578,-1172.35053061,0.0002071,2]
[334576039,1723258240587,-1172.35053061,0.0002071,2]
[334576040,1723258240597,-1172.35053061,0.0002071,2]
[334576041,1723258240606,-1172.35053061,0.0002071,2]
[334576042,1723258240616,-1398.82733766,0.0002071,2]
[334576043,1723258240626,-1398.82733766,0.0002071,2]
[334576044,1723258240635,-1398.82733766,0.0002071,2]
[334576045,1723258240646,-1398.82733766,0.0002071,2]
[334576046,1723258240656,-151.0,0.00020711,2]
[334576048,1723258240666,-234.732712,0.00020711,2]
[334576050,1723258240676,-84739.21046803,0.00020711,2]
[334576057,1723258241495,-481.36476299,0.00020711,2]
[334576071,1723258241606,-501.98208771,0.00020711,2]
[334576073,1723258241618,-27467.72785915,0.00020711,2]
[334576075,1723258241630,-306.46020455,0.00020711,2]
[334576077,1723258241643,-409.36729052,0.00020711,2]
[334576147,1723258249823,273.37336231,9.9e-05,2]
[334576148,1723258266623,273.37336231,9.9e-05,2]
[334576149,1723258282555,273.37336231,9.9e-05,2]
[334576150,1723258284718,154.84425329,0.00012,2]
[334576151,1723258297904,273.37336231,9.9e-05,2]
[334576152,1723258312278,155.08212812,0.00014545,2]
[334576153,1723258313746,273.37336231,9.9e-05,2]
[334576154,1723258330639,273.37336231,9.9e-05,2]
[334576155,1723258346321,273.37336231,9.9e-05,2]
[334576156,1723258362217,273.37336231,9.9e-05,2]
[334576157,1723258370135,234.12595299,9.9e-05,2]
[334576158,1723258378402,273.37336231,9.9e-05,2]
[334576159,1723258387125,514.53920886,0.00012,2]
[334576160,1723258389528,154.82545629,0.00012,2]
[334576161,1723258394588,273.37336231,9.9e-05,2]
[334576162,1723258409821,273.37336231,9.9e-05,2]
[334576167,1723258425331,273.37336231,9.9e-05,2]
[334576168,1723258441207,273.37336231,9.9e-05,2]
[334576169,1723258456688,273.37336231,9.9e-05,2]
[334576171,1723258472485,273.37336231,9.9e-05,2]
[334576174,1723258649282,273.37336231,9.9e-05,2]
[334576175,1723258665142,273.37336231,9.9e-05,2]
[334576176,1723258680938,273.37336231,9.9e-05,2]
[334576177,1723258696440,273.37336231,9.9e-05,2]
[334576178,1723258727122,273.37336231,9.9e-05,2]
[334576179,1723258742605,273.37336231,9.9e-05,2]
[334576180,1723258753115,169.94604,0.00014247,2]
[334576181,1723258757937,273.37336231,9.9e-05,2]
[334576182,1723258768723,158.30967925,0.00012,2]
[334576183,1723258773338,273.37336231,9.9e-05,2]
[334576184,1723258789403,273.37336231,9.9e-05,2]
[334576185,1723258804834,273.37336231,9.9e-05,2]
[334576186,1723258821042,273.37336231,9.9e-05,2]
[334576187,1723258837027,273.37336231,9.9e-05,2]
[334576188,1723258853041,273.37336231,9.9e-05,2]
[334576189,1723258868963,273.37336231,9.9e-05,2]
[334576190,1723258884843,273.37336231,9.9e-05,2]
[334576191,1723258899297,200.83522706,0.00012,2]
[334576192,1723258901594,273.37336231,9.9e-05,2]
[334576193,1723258917945,273.37336231,9.9e-05,2]
[334576194,1723258933501,273.37336231,9.9e-05,2]
[334576195,1723258949058,273.37336231,9.9e-05,2]
[334576196,1723258964907,273.37336231,9.9e-05,2]
[334576197,1723258980283,273.37336231,9.9e-05,2]
[334576198,1723258996325,273.37336231,9.9e-05,2]
[334576203,1723259012200,273.37336231,9.9e-05,2]
[334576204,1723259027896,273.37336231,9.9e-05,2]
[334576206,1723259043388,273.37336231,9.9e-05,2]
[334576207,1723259059870,273.37336231,9.9e-05,2]
[334576208,1723259076001,273.37336231,9.9e-05,2]
[334576209,1723259091948,273.37336231,9.9e-05,2]
[334576210,1723259107799,273.37336231,9.9e-05,2]
[334576211,1723259123256,273.37336231,9.9e-05,2]
[334576212,1723259138605,273.37336231,9.9e-05,2]
[334576213,1723259154503,273.37336231,9.9e-05,2]
[334576214,1723259170123,273.37336231,9.9e-05,2]
[334576215,1723259185620,273.37336231,9.9e-05,2]
[334576216,1723259201576,273.37336231,9.9e-05,2]
[334576217,1723259217641,273.37336231,9.9e-05,2]
[334576218,1723259233788,273.37336231,9.9e-05,2]
[334576219,1723259249923,273.37336231,9.9e-05,2]
[334576220,1723259266974,273.37336231,9.9e-05,2]
[334576221,1723259282453,273.37336231,9.9e-05,2]
[334576222,1723259298741,273.37336231,9.9e-05,2]
[334576223,1723259315429,273.37336231,9.9e-05,2]
[334576224,1723259332877,273.37336231,9.9e-05,2]
[334576225,1723259348300,273.37336231,9.9e-05,2]
[334576226,1723259363856,273.37336231,9.9e-05,2]
[334576227,1723259380153,273.37336231,9.9e-05,2]
[334576228,1723259397172,273.37336231,9.9e-05,2]
[334576229,1723259413819,273.37336231,9.9e-05,2]
[334576230,1723259429898,273.37336231,9.9e-05,2]
[334576247,1723259432121,-200.0,0.00018904,2]
[334576249,1723259432130,-275.41938185,0.00019338,2]
[334576251,1723259432142,-24.58061815,0.00019338,2]
[334576252,1723259432152,-13717.96483882,0.00019339,2]
[334576258,1723259438283,-9285.49172678,0.00019339,2]
[334576259,1723259438293,-150.0,0.0001963,2]
[334576261,1723259438302,-543.754,0.0001984,2]
[334576263,1723259438312,-488.48030385,0.0001984,2]
[334576266,1723259438326,-923.51969615,0.0001984,2]
[334576268,1723259438335,-154.92194178,0.0002,2]
[334576270,1723259438345,-337.14426524,0.0002,2]
[334576272,1723259438356,-171.57583552,0.0002,2]
[334576273,1723259438366,-566.08218277,0.0002,2]
[334576274,1723259438376,-163.67414706,0.0002,2]
[334576275,1723259438386,-153.0,0.0002,2]
[334576276,1723259438397,-154.7593061,0.00020219,2]
[334576277,1723259438407,-299.9444394,0.00020219,2]
[334576278,1723259438418,-306.5358926,0.00020219,2]
[334576279,1723259438430,-155.1885256,0.00020219,2]
[334576280,1723259438441,-272.2366755,0.00020219,2]
[334576281,1723259438452,-210.5618674,0.00020219,2]
[334576282,1723259438463,-600.0,0.00020227,2]
[334576283,1723259438473,-163.419935,0.00020407,2]
[334576284,1723259438484,-186.920156,0.00020407,2]
[334576285,1723259438495,-151.0,0.00020419,2]
[334576286,1723259438507,-600.0,0.00020438,2]
[334576287,1723259438517,-151.0,0.00020512,2]
[334576288,1723259438528,-4920.86390296,0.00020516,2]
[334576289,1723259438541,-283.20000091,0.000206,2]
[334576290,1723259438552,-283.20000091,0.00020603,2]
[334576291,1723259438563,-151.0,0.00020605,2]
[334576292,1723259438574,-151.0,0.00020605,2]
[334576293,1723259438584,-283.20000091,0.00020606,2]
[334576294,1723259438593,-283.20000091,0.00020608,2]
[334576295,1723259438602,-2000.0,0.00020611,2]
[334576296,1723259438611,-283.20000091,0.00020611,2]
[334576297,1723259438620,-27236.79752296,0.00020611,3]
[334576298,1723259438630,-3031.09842956,0.00020621,2]
[334576300,1723259438639,-600.0,0.00020649,2]
[334576301,1723259438649,-384.25,0.00020689,3]
[334576302,1723259438658,-151.0,0.00020698,2]
[334576303,1723259438668,-151.0,0.00020698,2]
[334576304,1723259438677,-500.0,0.00020699,2]
[334576305,1723259438686,-244.85891999,0.00020699,2]
[334576306,1723259438695,-527.78652367,0.00020699,2]
[334576307,1723259438707,-80215.6931807,0.00020699,2]
[334576308,1723259438716,-153.0,0.000207,2]
[334576309,1723259438726,-153.0,0.000207,2]
[334576310,1723259438735,-153.0,0.000207,2]
[334576311,1723259438745,-153.0,0.000207,2]
[334576312,1723259438754,-153.0,0.000207,2]
[334576313,1723259438763,-150.112233,0.000207,5]
[334576314,1723259438772,-150.112233,0.000207,3]
[334576315,1723259438782,-150.112233,0.000207,3]
[334576316,1723259438795,-150.112233,0.000207,4]
[334576317,1723259438804,-150.112233,0.000207,2]
[334576318,1723259438814,-150.112233,0.000207,4]
[334576319,1723259438824,-150.112233,0.000207,5]
[334576320,1723259438835,-155.923835,0.000207,5]
[334576321,1723259438844,-80215.6931807,0.00020701,2]
[334576322,1723259438854,-92809.54910852,0.00020709,11]
[334576323,1723259438864,-63965.93530761,0.00020709,2]
[334576359,1723259440399,-13046.95649166,0.00020709,2]
[334576360,1723259440409,-16222.3553426,0.00020711,2]
[334576361,1723259441576,-671.77936835,0.00020711,2]
[334576362,1723259441588,-23213.71187935,0.00020711,2]
[334576363,1723259441598,-151.0,0.00020711,2]
[334576364,1723259441607,-341.692922,0.00020711,2]
[334576365,1723259441617,-341.692922,0.00020711,2]
[334576366,1723259441626,-880.79709,0.00020711,2]
[334576367,1723259441635,-880.79709,0.00020711,2]
[334576368,1723259441645,-249.95005,0.00020711,2]
[334576369,1723259441654,-388.754769,0.00020711,2]
[334576370,1723259441664,-388.754769,0.00020711,2]
[334576371,1723259441674,-151.0,0.00020711,2]
[334576372,1723259441683,-151.0,0.00020711,2]
[334576373,1723259441692,-151.0,0.00020711,2]
[334576374,1723259441701,-151.0,0.00020711,2]
[334576375,1723259441711,-271.641731,0.00020711,2]
[334576376,1723259441720,-271.641731,0.00020711,2]
[334576377,1723259441729,-161.655673,0.00020711,2]
[334576378,1723259441739,-151.0,0.00020711,2]
[334576380,1723259441748,-151.0,0.00020711,2]
[334576381,1723259441757,-549.083612,0.00020711,2]
[334576383,1723259441766,-549.083612,0.00020711,2]
[334576384,1723259441775,-151.0,0.00020711,2]
[334576385,1723259441785,-171.52843,0.00020711,2]
[334576386,1723259441798,-171.52843,0.00020711,2]
[334576387,1723259441807,-171.52843,0.00020711,2]
[334576388,1723259441816,-171.52843,0.00020711,2]
[334576389,1723259441825,-288.88924,0.00020711,2]
[334576390,1723259441836,-288.88924,0.00020711,2]
[334576391,1723259441845,-80215.6931807,0.00020711,2]
[334576392,1723259441855,-290.18469059,0.00020717,2]
[334576393,1723259441864,-500.0,0.00020717,2]
[334576394,1723259441876,-812.84348432,0.00020717,2]
[334576395,1723259441886,-169.06065909,0.00020717,2]
[334576396,1723259441896,-812.84348432,0.00020717,2]
[334576397,1723259441906,-812.84348432,0.00020717,2]
[334576398,1723259441916,-812.84348432,0.00020717,2]
[334576399,1723259441926,-812.84348432,0.00020717,2]
[334576400,1723259441935,-812.84348432,0.00020717,2]
[334576401,1723259441945,-812.84348432,0.00020717,2]
[334576402,1723259441955,-812.84348432,0.00020717,2]
[334576403,1723259441965,-812.84348432,0.00020717,2]
[334576404,1723259441975,-812.84348432,0.00020717,2]
[334576405,1723259441984,-812.84348432,0.00020717,2]
[334576406,1723259441993,-812.84348432,0.00020717,2]
[334576407,1723259442002,-812.84348432,0.00020717,2]